fUST/lending_fUST_20240812
["ID","MTS","AMOUNT","RATE_DAILY","PERIOD"]
[334687279,1723471844089,-500.0,0.00020821,3]
[334687280,1723471844098,-542.9,0.00020821,3]
[334687281,1723471844108,-500.0,0.00020821,3]
[334687282,1723471844117,-542.9,0.00020821,3]
[334687283,1723471844127,-542.9,0.00020821,3]
[334687284,1723471844136,-542.9,0.00020821,3]
[334687285,1723471844145,-542.9,0.00020821,3]
[334687286,1723471844154,-542.9,0.00020821,3]
[334687287,1723471844163,-500.0,0.00020821,3]
[334687288,1723471844173,-504.97414325,0.00020821,3]
[334687289,1723471844183,-542.9,0.00020821,3]
[334687290,1723471844193,-542.9,0.00020821,3]
[334687291,1723471844202,-542.9,0.00020821,3]
[334687292,1723471844211,-542.9,0.00020821,3]
[334687293,1723471844221,-591.45,0.00020821,3]
[334687294,1723471844230,-365.82937392,0.00020821,3]
[334687295,1723471844249,-542.9,0.00020821,3]
[334687296,1723471844259,-542.9,0.00020821,3]
[334687297,1723471844269,-542.9,0.00020821,3]
[334687298,1723471844279,-542.93060359,0.00020821,3]
[334687299,1723471844289,-500.0,0.00020821,3]
[334687300,1723471844298,-3280.66,0.00020821,3]
[334687301,1723471844308,-783.11,0.00020821,3]
[334687302,1723471844317,-758.34,0.00020821,3]
[334687303,1723471844326,-500.0,0.00020821,3]
[334687304,1723471844337,-500.0,0.00020821,3]
[334687305,1723471844346,-500.0,0.00020821,3]
[334687306,1723471844355,-1380.31,0.00020821,3]
[334687307,1723471844366,-4722.56,0.00020821,3]
[334687308,1723471844375,-509.88815978,0.00020821,3]
[334687309,1723471844385,-500.0,0.00020821,3]
[334687310,1723471844395,-964.65,0.00020821,3]
[334687311,1723471844405,-500.0,0.00020821,3]
[334687312,1723471844414,-500.0,0.00020821,3]
[334687313,1723471844424,-10513.76,0.00020821,3]
[334687314,1723471844433,-500.0,0.00020821,3]
[334687315,1723471844443,-500.0,0.00020821,3]
[334687316,1723471844453,-500.0,0.00020821,3]
[334687317,1723471844463,-970.99,0.00020821,3]
[334687318,1723471844472,-343.6593187,0.00020821,3]
[334687319,1723471844482,-500.0,0.00020821,3]
[334687320,1723471844502,-605.53,0.00020821,3]
[334687321,1723471844511,-3223.34,0.00020821,3]
[334687322,1723471844521,-503.41868629,0.00020821,3]
[334687323,1723471844531,-500.0,0.00020821,3]
[334687324,1723471844540,-1600.12,0.00020821,3]
[334687325,1723471844549,-838.84,0.00020821,3]
[334687326,1723471844559,-500.0,0.00020821,3]
[334687327,1723471844568,-500.0,0.00020821,3]
[334687328,1723471844578,-3235.75,0.00020821,3]
[334687329,1723471844590,-585.36,0.00020821,3]
[334687330,1723471844599,-500.0,0.00020821,3]
[334687331,1723471844608,-500.0,0.00020821,3]
[334687332,1723471844618,-2053.8,0.00020821,3]
[334687333,1723471844627,-286.13883737,0.00020821,3]
[334687334,1723471844638,-500.0,0.00020821,3]
[334687335,1723471844647,-688.11,0.00020821,3]
[334687336,1723471844656,-500.0,0.00020821,3]
[334687337,1723471844669,-1967.68,0.00020821,3]
[334687338,1723471844679,-502.97989153,0.00020821,3]
[334687339,1723471844690,-11160.71,0.00020821,3]
[334687340,1723471844699,-500.0,0.00020821,3]
[334687341,1723471844708,-500.0,0.00020821,3]
[334687342,1723471844718,-500.0,0.00020821,3]
[334687343,1723471844728,-514.91161468,0.00020821,3]
[334687344,1723471844742,-544.52894034,0.00020821,3]
[334687345,1723471844760,-500.0,0.00020821,3]
[334687346,1723471844770,-500.0,0.00020821,3]
[334687347,1723471844781,-500.0,0.00020821,3]
[334687348,1723471844791,-1203.2,0.00020821,3]
[334687349,1723471844802,-712.98,0.00020821,3]
[334687350,1723471844812,-500.0,0.00020821,3]
[334687351,1723471844822,-563.22778677,0.00020821,3]
[334687352,1723471844832,-2302.72,0.00020821,3]
[334687353,1723471844843,-500.0,0.00020821,3]
[334687354,1723471844853,-500.0,0.00020821,3]
[334687355,1723471844863,-500.0,0.00020821,3]
[334687356,1723471844873,-500.0,0.00020821,3]
[334687357,1723471844882,-500.0,0.00020821,3]
[334687358,1723471844892,-500.0,0.00020821,3]
[334687359,1723471844902,-1897.64,0.00020821,3]
[334687360,1723471844911,-1918.99,0.00020821,3]
[334687361,1723471844921,-553.72,0.00020821,3]
[334687362,1723471844931,-301.74654116,0.00020821,3]
[334687363,1723471844942,-504.46139654,0.00020821,3]
[334687364,1723471844951,-1378.59,0.00020821,3]
[334687365,1723471844961,-500.0,0.00020821,3]
[334687366,1723471844971,-1341.4,0.00020821,3]
[334687367,1723471844981,-506.83263713,0.00020821,3]
[334687368,1723471845003,-503.56530414,0.00020821,3]
[334687369,1723471845013,-500.0,0.00020821,3]
[334687370,1723471845022,-1047.66,0.00020821,3]
[334687371,1723471845156,-714.74,0.00020821,3]
[334687372,1723471845167,-500.0,0.00020821,3]
[334687373,1723471845177,-500.0,0.00020821,3]
[334687374,1723471845187,-505.34929325,0.00020821,3]
[334687375,1723471845197,-1596.69,0.00020821,3]
[334687376,1723471845207,-1137.02,0.00020821,3]
[334687377,1723471845217,-2157.93,0.00020821,3]
[334687378,1723471845226,-500.0,0.00020821,3]
[334687379,1723471845237,-915.67,0.00020821,3]
[334687380,1723471845247,-507.03722635,0.00020821,3]
[334687381,1723471845256,-4123.35,0.00020821,3]
[334687382,1723471845266,-503.97874758,0.00020821,3]
[334687383,1723471845275,-500.0,0.00020821,3]
[334687384,1723471845285,-1297.16,0.00020821,3]
[334687385,1723471845295,-500.0,0.00020821,3]
[334687386,1723471845305,-500.0,0.00020821,3]
[334687387,1723471845314,-1120.19,0.00020821,3]
[334687388,1723471845323,-500.0,0.00020821,3]
[334687389,1723471845332,-595.55,0.00020821,3]
[334687390,1723471845343,-1006.65,0.00020821,3]
[334687391,1723471845353,-500.0,0.00020821,3]
[334687392,1723471845363,-1288.1,0.00020821,3]
[334687393,1723471845372,-718.8,0.00020821,3]
[334687394,1723471845382,-150.324,0.00020853,2]
[334687395,1723471845391,-180.146,0.00020853,2]
[334687396,1723471845401,-150.0,0.00020853,2]
[334687397,1723471845410,-200.0,0.00020873,2]
[334687398,1723471845421,-200.0,0.00020873,2]
[334687399,1723471845431,-200.0,0.00020873,2]
[334687400,1723471845439,-200.0,0.00020873,2]
[334687401,1723471845449,-200.0,0.00020873,2]
[334687402,1723471845458,-733.1,0.000209,2]
[334687403,1723471845467,-2754.53,0.000209,2]
[334687404,1723471845476,-150.112233,0.000209,3]
[334687405,1723471845486,-27698.58,0.000209,2]
[334687406,1723471845510,-7746.76675486,0.00020999,14]
[334687407,1723471845519,-2605.98976067,0.00020999,2]
[334687408,1723471845529,-285.0,0.00021,2]
[334687409,1723471845539,-3000.0,0.00021,2]
[334687411,1723471845550,-3000.0,0.0002101,2]
[334687413,1723471845559,-3000.0,0.0002102,2]
[334687414,1723471845569,-3000.0,0.0002103,2]
[334687415,1723471845578,-3000.0,0.0002104,2]
[334687416,1723471845589,-3000.0,0.0002105,2]
[334687417,1723471845601,-3000.0,0.0002106,2]
[334687418,1723471845611,-3000.0,0.0002107,2]
[334687419,1723471845621,-200.0,0.00021073,2]
[334687420,1723471845630,-3000.0,0.0002108,2]
[334687421,1723471845640,-3000.0,0.0002109,2]
[334687422,1723471845650,-500.36549665,0.00021095,2]
[334687423,1723471845660,-500.0,0.00021095,3]
[334687424,1723471845671,-500.0,0.00021095,3]
[334687425,1723471845681,-500.0,0.00021095,3]
[334687426,1723471845690,-500.0,0.00021095,3]
[334687427,1723471845700,-500.0,0.00021095,2]
[334687428,1723471845709,-500.0,0.00021095,3]
[334687430,1723471845719,-500.0,0.00021095,3]
[334687431,1723471845728,-1179.16,0.00021095,3]
[334687432,1723471845738,-500.0,0.00021095,3]
[334687433,1723471845747,-500.0,0.00021095,3]
[334687434,1723471845758,-500.0,0.00021095,3]
[334687435,1723471845767,-500.0,0.00021095,3]
[334687437,1723471845776,-500.0,0.00021095,3]
[334687439,1723471845786,-500.0,0.00021095,3]
[334687441,1723471845796,-500.0,0.00021095,3]
[334687442,1723471845805,-500.0,0.00021095,3]
[334687443,1723471845814,-500.0,0.00021095,3]
[334687445,1723471845823,-500.0,0.00021095,3]
[334687446,1723471845833,-500.0,0.00021095,3]
[334687447,1723471845842,-500.0,0.00021095,3]
[334687448,1723471845852,-500.0,0.00021095,3]
[334687449,1723471845861,-500.0,0.00021095,3]
[334687450,1723471845870,-500.0,0.00021095,3]
[334687452,1723471845880,-500.0,0.00021095,3]
[334687454,1723471845889,-500.0,0.00021095,3]
[334687455,1723471845899,-500.0,0.00021095,3]
[334687456,1723471845909,-500.0,0.00021095,3]
[334687457,1723471845918,-503.10120113,0.00021095,3]
[334687458,1723471845927,-500.0,0.00021095,3]
[334687459,1723471845937,-500.0,0.00021095,3]
[334687460,1723471845946,-500.0,0.00021095,3]
[334687461,1723471845955,-500.0,0.00021095,3]
[334687462,1723471845965,-520.17764207,0.00021095,3]
[334687463,1723471845974,-518.39715278,0.00021095,3]
[334687464,1723471845983,-795.27,0.00021095,3]
[334687465,1723471846007,-500.0,0.00021095,3]
[334687466,1723471846017,-651.48,0.00021095,3]
[334687468,1723471846026,-500.0,0.00021095,3]
[334687469,1723471846036,-500.0,0.00021095,3]
[334687471,1723471846047,-500.0,0.00021095,3]
[334687473,1723471846057,-500.0,0.00021095,3]
[334687475,1723471846067,-500.0,0.00021095,3]
[334687477,1723471846077,-500.0,0.00021095,3]
[334687479,1723471846086,-505.48,0.00021095,3]
[334687481,1723471846095,-500.0,0.00021095,3]
[334687482,1723471846105,-437.23647548,0.00021095,3]
[334687484,1723471846115,-500.0,0.00021095,3]
[334687486,1723471846124,-500.0,0.00021095,3]
[334687487,1723471846133,-510.94107302,0.00021095,3]
[334687488,1723471846142,-507.2578709,0.00021095,3]
[334687489,1723471846151,-503.67,0.00021095,3]
[334687490,1723471846161,-500.0,0.00021095,3]
[334687491,1723471846170,-640.23,0.00021095,3]
[334687492,1723471846179,-500.0,0.00021095,3]
[334687493,1723471846188,-605.66,0.00021095,3]
[334687494,1723471846198,-500.0,0.00021095,3]
[334687495,1723471846207,-151.0,0.00021095,2]
[334687496,1723471846217,-500.0,0.00021095,3]
[334687497,1723471846226,-384.23911903,0.00021095,3]
[334687498,1723471846235,-500.0,0.00021095,3]
[334687499,1723471846245,-386.42793739,0.00021095,3]
[334687500,1723471846254,-500.0,0.00021095,3]
[334687501,1723471846264,-151.0,0.00021095,2]
[334687502,1723471846274,-500.0,0.00021095,3]
[334687503,1723471846283,-500.0,0.00021095,3]
[334687504,1723471846293,-500.0,0.00021095,3]
[334687505,1723471846302,-987.39,0.00021095,3]
[334687506,1723471846311,-500.0,0.00021095,3]
[334687508,1723471846320,-522.5658529,0.00021095,3]
[334687510,1723471846330,-500.0,0.00021095,3]
[334687512,1723471846339,-500.0,0.00021095,3]
[334687514,1723471846348,-500.0,0.00021095,3]
[334687516,1723471846358,-500.0,0.00021095,3]
[334687518,1723471846368,-500.0,0.00021095,3]
[334687519,1723471846377,-821.68,0.00021095,3]
[334687520,1723471846387,-500.0,0.00021095,3]
[334687521,1723471846397,-188.654455,0.00021095,2]
[334687522,1723471846410,-188.654455,0.00021095,2]
[334687523,1723471846426,-500.0,0.00021095,3]
[334687524,1723471846441,-500.0,0.00021095,3]
[334687525,1723471846454,-500.0,0.00021095,3]
[334687526,1723471846466,-500.0,0.00021095,3]
[334687527,1723471846480,-500.0,0.00021095,3]
[334687528,1723471846507,-500.0,0.00021095,3]
[334687529,1723471846521,-151.0,0.00021095,2]
[334687530,1723471846535,-500.0,0.00021095,3]
[334687531,1723471846548,-280.581885,0.00021095,2]
[334687532,1723471846563,-200.0,0.00021095,3]
[334687533,1723471846577,-500.0,0.00021095,3]
[334687534,1723471846591,-500.0,0.00021095,3]
[334687535,1723471846604,-280.581885,0.00021095,2]
[334687536,1723471846616,-500.0,0.00021095,3]
[334687537,1723471846631,-500.0,0.00021095,3]
[334687538,1723471846644,-279.88289901,0.00021095,3]
[334687539,1723471846726,-238.43248681,0.00021095,3]
[334687540,1723471846746,-500.0,0.00021095,3]
[334687541,1723471846757,-817.11,0.00021095,3]
[334687542,1723471846768,-500.0,0.00021095,3]
[334687543,1723471846779,-394.45188079,0.00021095,3]
[334687544,1723471846994,-897.92379833,0.0001872,2]
[334687545,1723471847006,-154.9230676,0.00018786,2]
[334687546,1723471847017,-342.39119771,0.0002028,2]
[334687547,1723471847029,-105.54811921,0.00021095,3]
[334687548,1723471847041,-877.57,0.00021095,3]
[334687549,1723471847053,-500.0,0.00021095,3]
[334687550,1723471847065,-35.39381714,0.00021095,3]
[334687551,1723471847079,-506.72991012,0.00021095,3]
[334687552,1723471847091,-500.0,0.00021095,3]
[334687553,1723471847102,-378.33193688,0.00021095,3]
[334687554,1723471847495,-472.28479668,0.00018845,2]
[334687555,1723471847507,-154.76012181,0.00018899,2]
[334687556,1723471847519,-494.73852133,0.00019256,2]
[334687557,1723471847531,-500.0,0.00020821,3]
[334687558,1723471847542,-266.149674,0.00021095,3]
[334687559,1723471847787,-454.90838912,0.00021095,3]
[334687560,1723471847796,-500.0,0.00021095,3]
[334687561,1723471847806,-500.0,0.00021095,3]
[334687562,1723471847816,-990.24,0.00021095,3]
[334687563,1723471847825,-472.37504085,0.00021095,3]
[334687564,1723471847834,-239.49774398,0.00021095,3]
[334687566,1723472206818,159.795998,0.00014247,2]
[334687567,1723472267418,164.68267748,0.00014247,2]
[334687573,1723472647885,157.726032,0.00014247,2]
[334687583,1723472830148,-516.71728973,0.0001611,2]
[334687618,1723472960160,-27920.96762926,0.0001611,2]
[334687619,1723472968159,-27648.26870267,0.0001611,2]
[334687620,1723472974108,-153.00053008,0.0001611,2]
[334687669,1723473032991,-153.0,0.00016438,2]
[334687670,1723473033000,-300.0,0.00017383,2]
[334687671,1723473033010,-5476.72016493,0.00017384,2]
[334687672,1723473033109,-5920.5,0.00017384,2]
[334687723,1723473038309,-3883.82093431,0.00017384,2]
[334687724,1723473038321,-9618.95890076,0.00017384,2]
[334687725,1723473038331,-354.20315943,0.00017882,2]
[334687726,1723473038340,-250.0,0.00018144,2]
[334687727,1723473038350,-250.0,0.00018193,2]
[334687728,1723473038359,-250.0,0.00018243,2]
[334687729,1723473038368,-250.0,0.00018293,2]
[334687730,1723473038378,-636.65531725,0.00018302,2]
[334687731,1723473038387,-250.0,0.00018343,2]
[334687732,1723473038398,-250.0,0.00018393,2]
[334687733,1723473038408,-250.0,0.00018442,2]
[334687734,1723473038418,-250.0,0.00018492,2]
[334687735,1723473038428,-250.0,0.00018542,2]
[334687736,1723473038437,-250.0,0.00018592,2]
[334687737,1723473038446,-250.0,0.00018641,2]
[334687738,1723473038456,-250.0,0.00018691,2]
[334687739,1723473038465,-250.0,0.00018741,2]
[334687740,1723473038474,-4032.47017182,0.00018745,2]
[334687741,1723473038483,-250.0,0.00018791,2]
[334687742,1723473038493,-341.99661202,0.00018799,2]
[334687743,1723473038502,-250.0,0.0001884,2]
[334687744,1723473038512,-14638.44634197,0.00018886,2]
[334687745,1723473038521,-250.0,0.0001889,2]
[334687746,1723473038531,-500.0,0.00018904,2]
[334687747,1723473038541,-5000.0,0.00018904,2]
[334687748,1723473038550,-250.0,0.0001894,2]
[334687749,1723473038560,-157.11976669,0.00018979,2]
[334687750,1723473038569,-250.0,0.0001899,2]
[334687751,1723473038578,-250.0,0.00019039,2]
[334687752,1723473038587,-250.0,0.00019089,2]
[334687753,1723473038596,-420.0,0.00019121,2]
[334687754,1723473038605,-3090.72018399,0.00019155,2]
[334687755,1723473038615,-277.46411292,0.00019167,2]
[334687756,1723473038624,-550.0,0.00019176,2]
[334687757,1723473038633,-500.0,0.00019176,2]
[334687758,1723473038642,-500.0,0.00019176,2]
[334687759,1723473038657,-500.0,0.00019176,2]
[334687760,1723473038667,-628.38184301,0.00019176,2]
[334687761,1723473038676,-55434.59759481,0.00019177,2]
[334687762,1723473038685,-157.74358322,0.00019177,2]
[334687763,1723473038695,-2164.15371537,0.00019177,2]
[334687764,1723473038705,-161.896212,0.00019178,2]
[334687765,1723473038714,-165.628358,0.00019178,2]
[334687766,1723473038724,-250.0,0.00019178,2]
[334687767,1723473038733,-162.41795,0.00019178,2]
[334687768,1723473038742,-601.28608268,0.00019256,2]
[334687769,1723473038752,-208.59918416,0.00019256,2]
[334687770,1723473038761,-53568.6867962,0.00019341,2]
[334687771,1723473038770,-2912.86683849,0.00019351,2]
[334687772,1723473038779,-492.86524914,0.00019451,2]
[334687773,1723473038788,-897.92379833,0.00019451,2]
[334687774,1723473038798,-850.24651816,0.00019451,2]
[334687775,1723473038807,-990.107634,0.00019451,2]
[334687776,1723473038816,-417.60791455,0.00019451,2]
[334687777,1723473038826,-3723.27667503,0.00019451,2]
[334687778,1723473038835,-345.38598763,0.00019477,2]
[334687779,1723473038844,-1612.28857669,0.00019477,2]
[334687780,1723473038854,-162.85869012,0.00019477,2]
[334687781,1723473038864,-472.28479668,0.00019477,2]
[334687782,1723473038873,-155.18167037,0.00019477,2]
[334687783,1723473038882,-196.63865106,0.00019477,2]
[334687784,1723473038891,-1644.88536636,0.00019527,7]
[334687785,1723473038906,-154.77557542,0.00019547,2]
[334687786,1723473038915,-4032.4701718,0.00019888,2]
[334687787,1723473038924,-37779.90199611,0.0001999,2]
[334687788,1723473038933,-165.71411466,0.00019999,2]
[334687789,1723473038942,-309.67780799,0.0002,2]
[334687790,1723473038953,-4108.99718765,0.0002,2]
[334687791,1723473038968,-294.42204794,0.0002,2]
[334687792,1723473038977,-154.76012181,0.0002,2]
[334687793,1723473038986,-1393.14395153,0.0002,2]
[334687794,1723473038995,-292.27655221,0.0002,2]
[334687795,1723473039006,-151.90208824,0.00020003,2]
[334687796,1723473039015,-165.71411466,0.0002028,2]
[334687797,1723473039025,-154.76012181,0.0002028,2]
[334687798,1723473039037,-500.0,0.00020314,2]
[334687799,1723473039046,-2753.65170762,0.00020377,11]
[334687800,1723473039056,-85085.78732805,0.00020377,2]
[334687801,1723473039066,-498.88829442,0.00020417,2]
[334687802,1723473039075,-308.1506605,0.00020575,2]
[334687803,1723473039085,-2000.0,0.00020601,2]
[334687804,1723473039094,-107137.373592,0.00020691,2]
[334687805,1723473039103,-55717.50698566,0.00020701,3]
[334687806,1723473039234,-183.02184235,0.00019547,2]
[334687807,1723473039244,-12191.19709736,0.00020701,3]
[334687808,1723473039253,-817.03180288,0.00020721,4]
[334687809,1723473039263,-44869.04414405,0.00020811,2]
[334687829,1723473040420,-728.24505159,0.00019477,2]
[334687830,1723473040429,-1685.74881033,0.00020811,2]
[334687831,1723473040466,-328.28270888,0.00020811,2]
[334687832,1723473040478,-3975.71224314,0.00020811,2]
[334687834,1723473040490,-6705.1912152,0.00020811,2]
[334687837,1723473040513,-1209.5914818,0.00019139,2]
[334687861,1723473048027,91.99946992,9.9e-05,2]
[334687862,1723473048053,181.37389239,9.9e-05,2]
[334687864,1723473048305,-153.0,0.00016438,2]
[334687865,1723473048314,-157.11976669,0.00018976,2]
[334687866,1723473048324,-296.77949751,0.00019046,2]
[334687867,1723473048334,-8223.31784451,0.00019139,2]
[334687868,1723473048343,-103142.0812674,0.00020811,2]
[334687870,1723473048352,-500.0,0.00020821,3]
[334687872,1723473048362,-500.0,0.00020821,3]
[334687874,1723473048372,-500.0,0.00020821,3]
[334687876,1723473048381,-433.59125343,0.00020821,3]
[334687878,1723473048390,-500.0,0.00020821,3]
[334687880,1723473048400,-500.0,0.00020821,3]
[334687882,1723473048415,-586.87,0.00020821,3]
[334687884,1723473048424,-555.19,0.00020821,3]
[334687886,1723473048433,-500.0,0.00020821,3]
[334687888,1723473048442,-500.0,0.00020821,3]
[334687889,1723473048452,-500.0,0.00020821,3]
[334687890,1723473048461,-500.0,0.00020821,3]
[334687891,1723473048471,-508.75605454,0.00020821,3]
[334687892,1723473048480,-753.21,0.00020821,3]
[334687893,1723473048490,-511.2077985,0.00020821,3]
[334687894,1723473048500,-500.0,0.00020821,3]
[334687895,1723473048509,-500.0,0.00020821,3]
[334687896,1723473048519,-500.0,0.00020821,3]
[334687897,1723473048529,-500.0,0.00020821,3]
[334687898,1723473048540,-500.0,0.00020821,3]
[334687899,1723473048549,-500.0,0.00020821,3]
[334687900,1723473048559,-200.0,0.00020821,3]
[334687901,1723473048569,-500.0,0.00020821,3]
[334687902,1723473048578,-152.30821725,0.00020821,3]
[334687903,1723473048587,-500.0,0.00020821,3]
[334687904,1723473048597,-798.94,0.00020821,3]
[334687905,1723473048606,-550.24824527,0.00020821,3]
[334687906,1723473048615,-500.0,0.00020821,3]
[334687907,1723473048624,-500.0,0.00020821,3]
[334687908,1723473048634,-505.35130249,0.00020821,3]
[334687909,1723473048643,-500.0,0.00020821,3]
[334687910,1723473048652,-500.0,0.00020821,3]
[334687911,1723473048666,-500.0,0.00020821,3]
[334687912,1723473048675,-500.0,0.00020821,3]
[334687913,1723473048685,-500.0,0.00020821,3]
[334687914,1723473048694,-500.0,0.00020821,3]
[334687915,1723473048704,-500.0,0.00020821,3]
[334687916,1723473048713,-500.0,0.00020821,3]
[334687917,1723473048723,-500.0,0.00020821,3]
[334687918,1723473048734,-500.0,0.00020821,3]
[334687919,1723473048743,-625.8659027,0.00020821,3]
[334687920,1723473048753,-511.03850065,0.00020821,3]
[334687921,1723473048763,-510.20080974,0.00020821,3]
[334687922,1723473048772,-500.0,0.00020821,3]
[334687923,1723473048781,-500.0,0.00020821,3]
[334687924,1723473048791,-500.0,0.00020821,3]
[334687925,1723473048800,-500.0,0.00020821,3]
[334687926,1723473048809,-500.0,0.00020821,3]
[334687927,1723473048818,-500.0,0.00020821,3]
[334687928,1723473048827,-500.0,0.00020821,3]
[334687929,1723473048837,-548.13124583,0.00020821,3]
[334687930,1723473048847,-500.0,0.00020821,3]
[334687931,1723473048856,-872.42,0.00020821,3]
[334687932,1723473048866,-505.10991823,0.00020821,3]
[334687933,1723473048875,-650.54,0.00020821,3]
[334687934,1723473048884,-500.0,0.00020821,3]
[334687935,1723473048894,-500.0,0.00020821,3]
[334687936,1723473048908,-3036.73,0.00020821,3]
[334687937,1723473048917,-500.0,0.00020821,3]
[334687938,1723473048928,-500.0,0.00020821,3]
[334687939,1723473048938,-500.0,0.00020821,3]
[334687940,1723473048946,-714.67,0.00020821,3]
[334687941,1723473048960,-500.0,0.00020821,3]
[334687942,1723473048971,-500.0,0.00020821,3]
[334687943,1723473048981,-247.54467433,0.00020821,3]
[334687944,1723473048991,-500.0,0.00020821,3]
[334687945,1723473049001,-500.0,0.00020821,3]
[334687946,1723473049010,-500.0,0.00020821,3]
[334687947,1723473049021,-503.35240023,0.00020821,3]
[334687948,1723473049031,-500.0,0.00020821,3]
[334687949,1723473049040,-472.46281568,0.00020821,3]
[334687950,1723473049052,-500.0,0.00020821,3]
[334687951,1723473049062,-500.0,0.00020821,3]
[334687952,1723473049072,-500.0,0.00020821,3]
[334687953,1723473049081,-521.14,0.00020821,3]
[334687954,1723473049091,-500.0,0.00020821,3]
[334687955,1723473049100,-518.07078944,0.00020821,3]
[334687956,1723473049110,-500.0,0.00020821,3]
[334687957,1723473049119,-505.06170648,0.00020821,3]
[334687958,1723473049128,-500.0,0.00020821,3]
[334687959,1723473049138,-500.0,0.00020821,3]
[334687960,1723473049147,-500.0,0.00020821,3]
[334687961,1723473049162,-500.0,0.00020821,3]
[334687962,1723473049172,-1161.84,0.00020821,3]
[334687963,1723473049182,-500.0,0.00020821,3]
[334687964,1723473049191,-500.0,0.00020821,3]
[334687965,1723473049201,-622.07554844,0.00020821,3]
[334687966,1723473049211,-503.03818319,0.00020821,3]
[334687967,1723473049220,-500.0,0.00020821,3]
[334687968,1723473049230,-500.0,0.00020821,3]
[334687969,1723473049240,-504.94502571,0.00020821,3]
[334687970,1723473049249,-500.0,0.00020821,3]
[334687971,1723473049259,-514.44900278,0.00020821,3]
[334687972,1723473049269,-507.50428328,0.00020821,3]
[334687973,1723473049278,-500.0,0.00020821,3]
[334687974,1723473049288,-500.0,0.00020821,3]
[334687975,1723473049298,-500.0,0.00020821,3]
[334687976,1723473049307,-500.0,0.00020821,3]
[334687977,1723473049318,-500.0,0.00020821,3]
[334687978,1723473049327,-500.0,0.00020821,3]
[334687979,1723473049338,-462.4695468,0.00020821,3]
[334687980,1723473049349,-500.0,0.00020821,3]
[334687981,1723473049359,-500.0,0.00020821,3]
[334687982,1723473049368,-500.0,0.00020821,3]
[334687983,1723473049379,-500.0,0.00020821,3]
[334687984,1723473049389,-500.0,0.00020821,3]
[334687985,1723473049399,-500.0,0.00020821,3]
[334687986,1723473049417,-232.80984885,0.00020821,3]
[334687987,1723473049426,-500.0,0.00020821,3]
[334687988,1723473049442,-500.0,0.00020821,3]
[334687989,1723473049451,-948.04,0.00020821,3]
[334687990,1723473049461,-817.12,0.00020821,3]
[334687991,1723473049471,-500.0,0.00020821,3]
[334687992,1723473049481,-500.0,0.00020821,3]
[334687993,1723473049491,-500.0,0.00020821,3]
[334687994,1723473049501,-500.0,0.00020821,3]
[334687995,1723473049511,-500.0,0.00020821,3]
[334687996,1723473049520,-505.7020919,0.00020821,3]
[334687997,1723473049531,-510.02733992,0.00020821,3]
[334687998,1723473049541,-948.98,0.00020821,3]
[334687999,1723473049550,-500.0,0.00020821,3]
[334688000,1723473049561,-502.06461699,0.00020821,3]
[334688001,1723473049570,-500.0,0.00020821,3]
[334688002,1723473049579,-500.0,0.00020821,3]
[334688003,1723473049589,-500.0,0.00020821,3]
[334688004,1723473049598,-500.0,0.00020821,3]
[334688005,1723473049608,-500.0,0.00020821,3]